[Event "FIDE CB Open 2022"]
[Site "Ceske Budejovice"]
[Date "2022.07.04"]
[Round "4.28"]
[White "Hladky, Tadeas"]
[Black "Toman, Jan"]
[Result "1-0"]
[ECO "C47"]
[WhiteElo "2095"]
[BlackElo "2142"]
[Annotator "NA RC"]
[PlyCount "83"]
[EventDate "2022.07.01"]
[EventType "swiss"]
[EventCountry "CZE"]
[SourceTitle "playchess.com"]
[Source "ChessBase"]
[SourceQuality "1"]
[TimeControl "40/5400+30:1800+30"]

1. e4 {[%emt 0:00:04]} e5 {[%emt 0:00:10]} 2. Nf3 {[%emt 0:00:05]} Nc6 {[%emt 0:00:16]} 3. d4 {[%emt 0:00:07]} exd4 {[%emt 0:00:04]} 4. Nxd4 {[%emt 0:00:04]} Nf6 {[%emt 0:02:31]} 5. Nc3 {[%emt 0:01:42]} Bb4 {[%emt 0:00:49]} 6. Nxc6 {[%emt 0:00:09]} bxc6 {[%emt 0:00:06]} 7. Bd3 {[%emt 0:00:06]} O-O {[%emt 0:03:19]} 8. O-O {[%emt 0:00:12]} d5 {[%emt 0:00:08]} 9. exd5 {[%emt 0:00:11]} cxd5 {[%emt 0:00:05]} 10. Bg5 {[%emt 0:00:26]} c6 {[%emt 0:05:35]} 11. Na4 {[%emt 0:00:06]} Be7 {[%emt 0:10:55]} 12. c4 {[%emt 0:00:10]} Be6 {[%emt 0:01:56]} 13. Qc2 {[%emt 0:07:00]} h6 {[%emt 0:01:57]} 14. Bh4 {[%emt 0:00:07]} Rb8 {[%emt 0:03:49]} 15. Rfd1 {[%emt 0:02:33]} Nh5 {[%emt 0:09:46]} 16. cxd5 {[%emt 0:06:35]} Bxd5 {[%emt 0:03:27]} 17. Bxe7 {[%emt 0:01:09]} Qxe7 {[%emt 0:00:05]} 18. Nc3 {[%emt 0:02:24]} Nf4 {[%emt 0:06:30]} 19. Nxd5 {[%emt 0:03:08]} cxd5 {[%emt 0:00:24]} 20. Bf1 {[%emt 0:00:43]} Qf6 {[%emt 0:02:44]} 21. b3 {[%emt 0:02:07]} Rfc8 {[%emt 0:06:13]} 22. Qd2 {[%emt 0:00:11]} Rc5 {[%emt 0:15:53]} 23. Rac1 {[%emt 0:04:12]} Rxc1 {[%emt 0:04:26]} 24. Qxc1 {[%emt 0:00:58]} Rd8 {[%emt 0:00:19]} 25. Qc7 {[%emt 0:02:12]} Re8 {[%emt 0:07:10]} 26. Qxa7 {[%emt 0:08:51]} Ne2+ {[%emt 0:00:25]} 27. Bxe2 {[%emt 0:00:57]} Rxe2 {[%emt 0:00:04]} 28. a4 {[%emt 0:04:50]} Qb2 {[%emt 0:00:33]} 29. Qb8+ {[%emt 0:08:44]} Kh7 {[%emt 0:00:04]} 30. Qg3 {[%emt 0:00:21]} Qd2 {[%emt 0:01:36]} 31. Rf1 {[%emt 0:00:32]} Re1 {[%emt 0:00:05]} 32. Qf3 {[%emt 0:02:01]} Rxf1+ {[%emt 0:00:40]} 33. Kxf1 {[%emt 0:00:04]} Qc1+ {[%emt 0:00:06]} 34. Ke2 {[%emt 0:00:04]} Qc2+ {[%emt 0:00:17]} 35. Ke1 {[%emt 0:00:15]} d4 {[%emt 0:03:08]} 36. Qd1 {[%emt 0:01:14]} Qe4+ {[%emt 0:02:50]} 37. Kf1 {[%emt 0:00:05]} d3 {[%emt 0:00:13]} 38. a5 {[%emt 0:00:59]} Qd4 {[%emt 0:03:48]} 39. a6 {[%emt 0:00:51]} d2 {[%emt 0:02:11]} 40. Ke2 {[%emt 0:01:16]} Qg4+ {[%emt 0:04:59]} 41. Kxd2 {[%emt 0:30:09]} Qd7+ {[%emt 0:00:57]} 42. Kc1 {[%emt 0:00:00]} 1-0

[Event "FIDE CB Open 2022"]
[Site "Ceske Budejovice"]
[Date "2022.07.04"]
[Round "4.29"]
[White "Zilavy, Jan"]
[Black "Ondrejat, Miroslav"]
[Result "0-1"]
[ECO "B92"]
[WhiteElo "2090"]
[BlackElo "1903"]
[Annotator "RC"]
[PlyCount "95"]
[EventDate "2022.07.01"]
[EventType "swiss"]
[EventCountry "CZE"]
[SourceTitle "playchess.com"]
[Source "ChessBase"]
[SourceQuality "1"]
[TimeControl "40/5400+30:1800+30"]

1. e4 {[%emt 0:00:07]} c5 {[%emt 0:00:02]} 2. Nf3 {[%emt 0:00:13]} d6 {[%emt 0:00:05]} 3. d4 {[%emt 0:00:10]} cxd4 {[%emt 0:00:06]} 4. Nxd4 {[%emt 0:00:06]} Nf6 {[%emt 0:00:07]} 5. Nc3 {[%emt 0:00:11]} a6 {[%emt 0:00:09]} 6. Be3 {[%emt 0:01:31]} e5 {[%emt 0:00:50]} 7. Nb3 {[%emt 0:00:28]} Be6 {[%emt 0:01:31]} 8. Be2 {[%emt 0:04:14]} Nbd7 {[%emt 0:00:39]} 9. a4 {[%emt 0:01:06]} Rc8 {[%emt 0:01:15]} 10. O-O {[%emt 0:02:04]} Be7 {[%emt 0:00:13]} 11. a5 {[%emt 0:09:05]} O-O {[%emt 0:05:44]} 12. f3 {[%emt 0:04:24]} Nh5 {[%emt 0:24:16]} 13. Qd2 {[%emt 0:11:52]} g6 {[%emt 0:02:47]} 14. g4 {[%emt 0:12:22]} Ng7 {[%emt 0:05:46]} 15. Kh1 {[%emt 0:01:57]} g5 {[%emt 0:08:57]} 16. Rfd1 {[%emt 0:02:00]} h6 {[%emt 0:01:50]} 17. Rac1 {[%emt 0:06:21]} Bxb3 {[%emt 0:03:28]} 18. cxb3 {[%emt 0:00:06]} Nc5 {[%emt 0:01:53]} 19. Nd5 {[%emt 0:02:24]} Rc6 {[%emt 0:07:01]} 20. Rc3 {[%emt 0:06:45]} Re8 {[%emt 0:03:17]} 21. b4 {[%emt 0:02:17]} Nce6 {[%emt 0:02:01]} 22. Rxc6 {[%emt 0:01:13]} bxc6 {[%emt 0:00:02]} 23. Nxe7+ {[%emt 0:00:34]} Qxe7 {[%emt 0:00:47]} 24. Qxd6 {[%emt 0:00:09]} Qb7 {[%emt 0:01:21]} 25. Bb6 {[%emt 0:03:09]} Nd4 {[%emt 0:02:53]} 26. Bc4 {[%emt 0:01:32]} Nge6 {[%emt 0:03:10]} 27. Qxe5 {[%emt 0:05:18]} Nxf3 {[%emt 0:00:54]} 28. Qf6 {[%emt 0:01:40]} Nf4 {[%emt 0:00:32]} 29. Rd8 {[%emt 0:07:32]} Rxd8 {[%emt 0:01:46]} 30. Qxd8+ {[%emt 0:00:22]} Kg7 {[%emt 0:00:14]} 31. Bc5 {[%emt 0:00:29]} Ng6 {[%emt 0:02:09]} 32. Bb6 {[%emt 0:07:44]} Nfe5 {[%emt 0:01:54]} 33. Be2 {[%emt 0:00:31]} c5 {[%emt 0:00:21]} 34. Qd5 {[%emt 0:00:17]} Qe7 {[%emt 0:05:50]} 35. Bd8 {[%emt 0:02:46]} Qe8 {[%emt 0:00:22]} 36. Bc7 {[%emt 0:01:37]} cxb4 {[%emt 0:01:05]} 37. Bxa6 {[%emt 0:00:31]} Nxg4 {[%emt 0:00:30]} 38. Qd4+ {[%emt 0:00:34]} Kh7 {[%emt 0:00:45]} 39. Bd3 {[%emt 0:01:22]} Qa4 {[%emt 0:01:25]} 40. Be2 {[%emt 0:01:21]} h5 {[%emt 0:10:11]} 41. a6 {[%emt 0:15:30]} Qa1+ {[%emt 0:02:02]} 42. Qg1 {[%emt 0:00:17]} Qxb2 {[%emt 0:00:28]} 43. Bxg4 {[%emt 0:02:39]} hxg4 {[%emt 0:00:09]} 44. a7 {[%emt 0:00:35]} Qa2 {[%emt 0:01:13]} 45. Bb6 {[%emt 0:00:47]} Nf4 {[%emt 0:06:42]} 46. Bd4 {[%emt 0:02:57]} Qe2 {[%emt 0:00:39]} 47. a8=Q {[%emt 0:07:03]} Qf3+ {[%emt 0:01:33]} 48. Qg2 {[%emt 0:00:05]} 0-1

[Event "FIDE CB Open 2022"]
[Site "Ceske Budejovice"]
[Date "2022.07.04"]
[Round "4.30"]
[White "Vaculik, Martin"]
[Black "Laith, Kasib"]
[Result "1/2-1/2"]
[ECO "E71"]
[WhiteElo "2284"]
[BlackElo "2079"]
[Annotator "RC"]
[PlyCount "52"]
[EventDate "2022.07.01"]
[EventType "swiss"]
[EventCountry "CZE"]
[SourceTitle "playchess.com"]
[Source "ChessBase"]
[SourceQuality "1"]
[TimeControl "40/5400+30:1800+30"]

1. d4 {[%emt 0:00:07]} Nf6 {[%emt 0:04:59]} 2. c4 {[%emt 0:00:17]} g6 {[%emt 0:00:05]} 3. Nc3 {[%emt 0:00:11]} Bg7 {[%emt 0:00:09]} 4. e4 {[%emt 0:00:09]} d6 {[%emt 0:00:06]} 5. h3 {[%emt 0:00:02]} O-O {[%emt 0:01:06]} 6. Be3 {[%emt 0:00:04]} e5 {[%emt 0:01:05]} 7. d5 {[%emt 0:00:06]} a5 {[%emt 0:00:38]} 8. g4 {[%emt 0:00:17]} Na6 {[%emt 0:02:30]} 9. f3 {[%emt 0:00:52]} Nd7 {[%emt 0:06:53]} 10. Nge2 {[%emt 0:02:13]} Bh6 {[%emt 0:10:17]} 11. Bxh6 {[%emt 0:06:33]} Qh4+ {[%emt 0:00:37]} 12. Ng3 {[%emt 0:00:03]} Qxh6 {[%emt 0:01:56]} 13. h4 {[%emt 0:13:06]} Qf4 {[%emt 0:07:17]} 14. Kf2 {[%emt 0:03:44]} Nf6 {[%emt 0:01:21]} 15. Kg2 {[%emt 0:03:00]} Bxg4 {[%emt 0:02:45]} 16. fxg4 {[%emt 0:02:51]} Nxg4 {[%emt 0:00:06]} 17. Qf3 {[%emt 0:02:46]} f5 {[%emt 0:19:07]} 18. exf5 {[%emt 0:09:51]} Ne3+ {[%emt 0:10:43]} 19. Kf2 {[%emt 0:00:38]} Ng4+ {[%emt 0:00:08]} 20. Kg2 {[%emt 0:02:43]} Qd2+ {[%emt 0:10:04]} 21. Qe2 {[%emt 0:05:27]} Qd4 {[%emt 0:01:58]} 22. Nb5 {[%emt 0:04:06]} Ne3+ {[%emt 0:01:49]} 23. Kf2 {[%emt 0:02:17]} Qf4+ {[%emt 0:02:28]} 24. Qf3 {[%emt 0:00:30]} Ng4+ {[%emt 0:00:46]} 25. Kg2 {[%emt 0:00:20]} Ne3+ {[%emt 0:03:50]} 26. Kf2 {[%emt 0:00:04]} Ng4+ {[%emt 0:00:38]} 1/2-1/2

[Event "FIDE CB Open 2022"]
[Site "Ceske Budejovice"]
[Date "2022.07.04"]
[Round "4.31"]
[White "Placer, Sebastian"]
[Black "Kotleska, Roman"]
[Result "1-0"]
[ECO "A52"]
[WhiteElo "2062"]
[BlackElo "1863"]
[Annotator "ChessBase"]
[PlyCount "109"]
[EventDate "2022.07.01"]
[EventType "swiss"]
[EventCountry "CZE"]
[SourceTitle "playchess.com"]
[Source "ChessBase"]
[SourceQuality "1"]
[TimeControl "40/5400+30:1800+30"]

1. d4 {[%emt 0:00:07]} Nf6 {[%emt 0:00:24]} 2. c4 {[%emt 0:00:05]} e5 {[%emt 0:00:25]} 3. dxe5 {[%emt 0:00:04]} Ng4 {[%emt 0:00:08]} 4. Bf4 {[%emt 0:00:05]} Bb4+ {[%emt 0:00:25]} 5. Nd2 {[%emt 0:00:13]} Nc6 {[%emt 0:00:30]} 6. Ngf3 {[%emt 0:00:06]} Qe7 {[%emt 0:00:15]} 7. a3 {[%emt 0:00:30]} Ngxe5 {[%emt 0:00:37]} 8. Nxe5 {[%emt 0:00:07]} Nxe5 {[%emt 0:00:18]} 9. e3 {[%emt 0:00:02]} Bxd2+ {[%emt 0:00:43]} 10. Qxd2 {[%emt 0:00:02]} d6 {[%emt 0:01:32]} 11. Be2 {[%emt 0:00:22]} O-O {[%emt 0:02:11]} 12. O-O {[%emt 0:00:29]} b6 {[%emt 0:03:09]} 13. Qc3 {[%emt 0:01:09]} Bb7 {[%emt 0:02:31]} 14. Rfd1 {[%emt 0:00:57]} Ng6 {[%emt 0:14:46]} 15. Bg3 {[%emt 0:02:03]} f5 {[%emt 0:01:32]} 16. f3 {[%emt 0:14:11]} f4 {[%emt 0:08:58]} 17. Bf2 {[%emt 0:00:59]} fxe3 {[%emt 0:01:23]} 18. Qxe3 {[%emt 0:00:31]} Rae8 {[%emt 0:01:35]} 19. Qxe7 {[%emt 0:00:53]} Rxe7 {[%emt 0:00:14]} 20. Bf1 {[%emt 0:00:39]} Nf4 {[%emt 0:03:07]} 21. Rd2 {[%emt 0:00:51]} Rfe8 {[%emt 0:02:02]} 22. Rad1 {[%emt 0:01:44]} Ne2+ {[%emt 0:01:58]} 23. Kh1 {[%emt 0:01:36]} Ba6 {[%emt 0:01:16]} 24. Rc2 {[%emt 0:01:18]} Bb7 {[%emt 0:03:08]} 25. Rdd2 {[%emt 0:02:08]} Nf4 {[%emt 0:00:36]} 26. Kg1 {[%emt 0:08:12]} Bc8 {[%emt 0:04:48]} 27. b4 {[%emt 0:10:42]} Bf5 {[%emt 0:01:26]} 28. Rb2 {[%emt 0:00:12]} Kf7 {[%emt 0:06:20]} 29. g4 {[%emt 0:15:28]} Bc8 {[%emt 0:03:42]} 30. Bh4 {[%emt 0:09:55]} Rd7 {[%emt 0:19:38]} 31. Bg3 {[%emt 0:03:25]} Ng6 {[%emt 0:04:09]} 32. f4 {[%emt 0:12:38]} Rde7 {[%emt 0:03:05]} 33. f5 {[%emt 0:00:54]} Ne5 {[%emt 0:02:34]} 34. Be2 {[%emt 0:00:30]} g5 {[%emt 0:00:26]} 35. Kf2 {[%emt 0:09:46]} Bb7 {[%emt 0:01:14]} 36. Rbc2 {[%emt 0:00:58]} Kf6 {[%emt 0:02:11]} 37. c5 {[%emt 0:02:15]} dxc5 {[%emt 0:01:02]} 38. bxc5 {[%emt 0:00:09]} Be4 {[%emt 0:02:46]} 39. Rc1 {[%emt 0:00:26]} h6 {[%emt 0:01:41]} 40. h3 {[%emt 0:00:29]} Bb7 {[%emt 0:00:54]} 41. cxb6 {[%emt 0:32:59]} axb6 {[%emt 0:01:02]} 42. Bxe5+ {[%emt 0:00:00]} Kxe5 {[%emt 0:00:42]} 43. Bb5 {[%emt 0:00:00]} Rc8 {[%emt 0:07:54]} 44. Re1+ {[%emt 0:00:00]} Kf6 {[%emt 0:01:03]} 45. Rxe7 {[%emt 0:00:00]} Kxe7 {[%emt 0:00:05]} 46. Rd7+ {[%emt 0:00:00]} Kf6 {[%emt 0:00:20]} 47. Rh7 {[%emt 0:00:00]} Ke5 {[%emt 0:01:04]} 48. Rxh6 {[%emt 0:00:00]} Ra8 {[%emt 0:07:06]} 49. a4 {[%emt 0:00:00]} Kf4 {[%emt 0:02:26]} 50. Re6 {[%emt 0:00:00]} Rh8 {[%emt 0:04:18]} 51. Re3 {[%emt 0:00:00]} Bg2 {[%emt 0:02:39]} 52. f6 {[%emt 0:00:00]} Rf8 {[%emt 0:01:18]} 53. Re8 {[%emt 0:00:00]} Rxf6 {[%emt 0:01:55]} 54. Kxg2 {[%emt 0:00:00]} c6 {[%emt 0:02:13]} 55. Bd3 {[%emt 0:00:00]} 1-0

[Event "FIDE CB Open 2022"]
[Site "Ceske Budejovice"]
[Date "2022.07.04"]
[Round "4.32"]
[White "Mrazik, Tomas"]
[Black "Zeleny, Tomas"]
[Result "1/2-1/2"]
[ECO "E94"]
[WhiteElo "2055"]
[BlackElo "2136"]
[Annotator "NA RC"]
[PlyCount "44"]
[EventDate "2022.07.01"]
[EventType "swiss"]
[EventCountry "CZE"]
[SourceTitle "playchess.com"]
[Source "ChessBase"]
[SourceQuality "1"]
[TimeControl "40/5400+30:1800+30"]

1. Nf3 {[%emt 0:00:03]} Nf6 {[%emt 0:00:10]} 2. c4 {[%emt 0:00:06]} g6 {[%emt 0:00:12]} 3. Nc3 {[%emt 0:00:13]} Bg7 {[%emt 0:00:12]} 4. e4 {[%emt 0:00:10]} d6 {[%emt 0:00:07]} 5. d4 {[%emt 0:00:06]} O-O {[%emt 0:00:19]} 6. Be2 {[%emt 0:00:05]} Nbd7 {[%emt 0:00:29]} 7. O-O {[%emt 0:00:32]} e5 {[%emt 0:00:07]} 8. d5 {[%emt 0:00:14]} Ne8 {[%emt 0:03:16]} 9. Be3 {[%emt 0:09:54]} f5 {[%emt 0:04:32]} 10. Ne1 {[%emt 0:05:29]} f4 {[%emt 0:01:47]} 11. Bd2 {[%emt 0:00:01]} Ndf6 {[%emt 0:00:08]} 12. Nd3 {[%emt 0:02:12]} g5 {[%emt 0:02:49]} 13. c5 {[%emt 0:04:50]} g4 {[%emt 0:02:49]} 14. c6 {[%emt 0:00:55]} b6 {[%emt 0:06:45]} 15. a4 {[%emt 0:01:43]} Rf7 {[%emt 0:10:57]} 16. a5 {[%emt 0:04:40]} Rb8 {[%emt 0:00:12]} 17. axb6 {[%emt 0:00:48]} axb6 {[%emt 0:00:18]} 18. Nb4 {[%emt 0:03:19]} Bf8 {[%emt 0:05:53]} 19. Na6 {[%emt 0:01:32]} Ra8 {[%emt 0:04:05]} 20. Nb4 {[%emt 0:00:06]} Rb8 {[%emt 0:02:48]} 21. Na6 {[%emt 0:00:16]} Ra8 {[%emt 0:02:01]} 22. Nb4 {[%emt 0:00:20]} Rb8 {[%emt 0:07:01]} 1/2-1/2

[Event "FIDE CB Open 2022"]
[Site "Ceske Budejovice"]
[Date "2022.07.04"]
[Round "4.33"]
[White "Musil, Vitezslav"]
[Black "Chval, Zdenek"]
[Result "1/2-1/2"]
[ECO "B95"]
[WhiteElo "1834"]
[BlackElo "2063"]
[Annotator "NA RC"]
[PlyCount "101"]
[EventDate "2022.07.01"]
[EventType "swiss"]
[EventCountry "CZE"]
[SourceTitle "playchess.com"]
[Source "ChessBase"]
[SourceQuality "1"]
[TimeControl "40/5400+30:1800+30"]

1. e4 {[%emt 0:00:10]} c5 {[%emt 0:00:08]} 2. Nf3 {[%emt 0:00:04]} d6 {[%emt 0:00:04]} 3. d4 {[%emt 0:00:04]} cxd4 {[%emt 0:00:03]} 4. Nxd4 {[%emt 0:00:03]} Nf6 {[%emt 0:00:04]} 5. Nc3 {[%emt 0:00:04]} a6 {[%emt 0:00:10]} 6. Bg5 {[%emt 0:00:08]} e6 {[%emt 0:00:03]} 7. Bc4 {[%emt 0:00:09]} Be7 {[%emt 0:00:26]} 8. Qf3 {[%emt 0:00:24]} Qc7 {[%emt 0:03:06]} 9. Bb3 {[%emt 0:00:07]} Nc6 {[%emt 0:07:24]} 10. O-O-O {[%emt 0:01:53]} O-O {[%emt 0:07:18]} 11. Qg3 {[%emt 0:12:16]} Nxd4 {[%emt 0:26:55]} 12. Rxd4 {[%emt 0:01:03]} e5 {[%emt 0:05:30]} 13. Bxf6 {[%emt 0:06:18]} Bxf6 {[%emt 0:00:02]} 14. Nd5 {[%emt 0:00:12]} Qd8 {[%emt 0:00:12]} 15. Nxf6+ {[%emt 0:01:56]} Qxf6 {[%emt 0:00:07]} 16. Rd2 {[%emt 0:00:10]} Rd8 {[%emt 0:05:23]} 17. Rhd1 {[%emt 0:00:43]} b5 {[%emt 0:02:18]} 18. Qe3 {[%emt 0:06:49]} Bb7 {[%emt 0:05:44]} 19. Bd5 {[%emt 0:00:38]} Bxd5 {[%emt 0:04:40]} 20. Rxd5 {[%emt 0:00:18]} Rac8 {[%emt 0:01:00]} 21. Kb1 {[%emt 0:00:54]} Qg6 {[%emt 0:03:33]} 22. g3 {[%emt 0:05:52]} f5 {[%emt 0:08:41]} 23. exf5 {[%emt 0:16:19]} Qxf5 {[%emt 0:00:08]} 24. Qb3 {[%emt 0:00:06]} Qe6 {[%emt 0:04:19]} 25. Rxd6 {[%emt 0:01:13]} Rxd6 {[%emt 0:00:40]} 26. Rxd6 {[%emt 0:00:01]} Qxb3 {[%emt 0:00:20]} 27. axb3 {[%emt 0:00:01]} Rf8 {[%emt 0:02:07]} 28. Rd2 {[%emt 0:00:01]} Kf7 {[%emt 0:01:33]} 29. Kc1 {[%emt 0:00:35]} Ke6 {[%emt 0:00:10]} 30. Kd1 {[%emt 0:01:20]} Kf5 {[%emt 0:01:14]} 31. h3 {[%emt 0:05:11]} Rf6 {[%emt 0:02:04]} 32. Rd7 {[%emt 0:00:58]} Rh6 {[%emt 0:02:35]} 33. Rxg7 {[%emt 0:05:05]} Rxh3 {[%emt 0:00:12]} 34. Kd2 {[%emt 0:01:54]} Ke4 {[%emt 0:01:07]} 35. Ke2 {[%emt 0:01:27]} Rh1 {[%emt 0:01:34]} 36. Ra7 {[%emt 0:01:52]} Rc1 {[%emt 0:02:02]} 37. Kd2 {[%emt 0:00:38]} Rf1 {[%emt 0:00:04]} 38. Rf7 {[%emt 0:00:09]} h5 {[%emt 0:01:23]} 39. Ke2 {[%emt 0:09:35]} Rc1 {[%emt 0:02:02]} 40. Kd2 {[%emt 0:05:04]} Rf1 {[%emt 0:00:06]} 41. b4 {[%emt 0:31:41]} Rb1 {[%emt 0:05:49]} 42. b3 {[%emt 0:00:00]} Rf1 {[%emt 0:00:32]} 43. Rf6 {[%emt 0:00:00]} Kd4 {[%emt 0:02:36]} 44. Rd6+ {[%emt 0:00:00]} Ke4 {[%emt 0:00:08]} 45. Ke2 {[%emt 0:00:00]} Rc1 {[%emt 0:01:27]} 46. Rd2 {[%emt 0:00:00]} Rh1 {[%emt 0:01:48]} 47. Rd3 {[%emt 0:00:00]} Rc1 {[%emt 0:01:01]} 48. Re3+ {[%emt 0:00:00]} Kd4 {[%emt 0:00:54]} 49. Kd2 {[%emt 0:00:00]} Rf1 {[%emt 0:01:12]} 50. Re2 {[%emt 0:00:00]} e4 {[%emt 0:03:12]} 51. c3+ {[%emt 0:00:00]} 1/2-1/2

[Event "FIDE CB Open 2022"]
[Site "Ceske Budejovice"]
[Date "2022.07.04"]
[Round "4.34"]
[White "Hrbek, Jachym"]
[Black "Radovic, Stefan"]
[Result "0-1"]
[ECO "D02"]
[WhiteElo "1695"]
[BlackElo "2018"]
[Annotator "NA RC"]
[PlyCount "46"]
[EventDate "2022.07.01"]
[EventType "swiss"]
[EventCountry "CZE"]
[SourceTitle "playchess.com"]
[Source "ChessBase"]
[SourceQuality "1"]
[TimeControl "40/5400+30:1800+30"]

1. d4 {[%emt 0:00:05]} d5 {[%emt 0:01:05]} 2. Bf4 {[%emt 0:00:07]} Nf6 {[%emt 0:00:36]} 3. e3 {[%emt 0:00:15]} c5 {[%emt 0:01:37]} 4. Nf3 {[%emt 0:02:55]} Nc6 {[%emt 0:02:02]} 5. Nbd2 {[%emt 0:05:58]} e6 {[%emt 0:03:34]} 6. c3 {[%emt 0:00:32]} Be7 {[%emt 0:01:14]} 7. Bd3 {[%emt 0:00:47]} Nh5 {[%emt 0:02:03]} 8. Bg3 {[%emt 0:00:17]} g6 {[%emt 0:21:22]} 9. Qe2 {[%emt 0:19:30]} O-O {[%emt 0:03:40]} 10. dxc5 {[%emt 0:08:08]} Nxg3 {[%emt 0:06:56]} 11. hxg3 {[%emt 0:00:10]} e5 {[%emt 0:07:30]} 12. Bc2 {[%emt 0:11:43]} Bxc5 {[%emt 0:02:09]} 13. b4 {[%emt 0:06:31]} Bd6 {[%emt 0:12:08]} 14. O-O-O {[%emt 0:11:02]} Bg4 {[%emt 0:05:37]} 15. Rh6 {[%emt 0:15:58]} e4 {[%emt 0:17:00]} 16. Rdh1 {[%emt 0:07:34]} exf3 {[%emt 0:00:46]} 17. gxf3 {[%emt 0:00:07]} Qf6 {[%emt 0:03:25]} 18. Rxh7 {[%emt 0:04:11]} Qxc3 {[%emt 0:00:51]} 19. Nb1 {[%emt 0:00:51]} Qf6 {[%emt 0:02:25]} 20. fxg4 {[%emt 0:01:46]} Nxb4 {[%emt 0:00:19]} 21. Qf1 {[%emt 0:01:21]} Rac8 {[%emt 0:00:37]} 22. Qh3 {[%emt 0:00:45]} Rxc2+ {[%emt 0:00:36]} 23. Kd1 {[%emt 0:00:01]} Qf3+ {[%emt 0:00:14]} 0-1

[Event "FIDE CB Open 2022"]
[Site "Ceske Budejovice"]
[Date "2022.07.04"]
[Round "4.35"]
[White "Simacek, Vaclav"]
[Black "Hrbolka, Ladislav"]
[Result "1-0"]
[ECO "B50"]
[WhiteElo "1856"]
[BlackElo "2164"]
[Annotator "RC"]
[PlyCount "81"]
[EventDate "2022.07.01"]
[EventType "swiss"]
[EventCountry "CZE"]
[SourceTitle "playchess.com"]
[Source "ChessBase"]
[SourceQuality "1"]
[TimeControl "40/5400+30:1800+30"]

1. e4 {[%emt 0:00:20]} c5 {[%emt 0:00:07]} 2. b4 {[%emt 0:00:20]} cxb4 {[%emt 0:00:31]} 3. Nf3 {[%emt 0:00:06]} d6 {[%emt 0:00:25]} 4. d4 {[%emt 0:00:19]} g6 {[%emt 0:00:14]} 5. a3 {[%emt 0:00:18]} Nf6 {[%emt 0:02:21]} 6. Bd3 {[%emt 0:03:29]} bxa3 {[%emt 0:00:20]} 7. O-O {[%emt 0:01:03]} Bg7 {[%emt 0:00:08]} 8. e5 {[%emt 0:03:14]} dxe5 {[%emt 0:08:44]} 9. dxe5 {[%emt 0:00:19]} Ng4 {[%emt 0:02:50]} 10. Bf4 {[%emt 0:06:31]} Nc6 {[%emt 0:07:37]} 11. Qe2 {[%emt 0:01:14]} O-O {[%emt 0:01:14]} 12. Nxa3 {[%emt 0:01:40]} Nd4 {[%emt 0:11:22]} 13. Qe4 {[%emt 0:12:19]} Nxf3+ {[%emt 0:02:14]} 14. gxf3 {[%emt 0:00:08]} Bf5 {[%emt 0:00:53]} 15. Qe2 {[%emt 0:09:06]} Bxd3 {[%emt 0:01:13]} 16. cxd3 {[%emt 0:00:06]} Qd4 {[%emt 0:05:47]} 17. fxg4 {[%emt 0:09:10]} Qxf4 {[%emt 0:00:06]} 18. Rfe1 {[%emt 0:00:20]} Rfd8 {[%emt 0:02:07]} 19. Rab1 {[%emt 0:07:42]} b6 {[%emt 0:10:10]} 20. Nb5 {[%emt 0:02:48]} a6 {[%emt 0:03:39]} 21. Nc7 {[%emt 0:06:49]} Ra7 {[%emt 0:02:13]} 22. Rbc1 {[%emt 0:01:05]} h6 {[%emt 0:05:21]} 23. Rc4 {[%emt 0:03:54]} Qg5 {[%emt 0:02:43]} 24. f4 {[%emt 0:02:04]} Qh4 {[%emt 0:00:06]} 25. Rec1 {[%emt 0:05:59]} h5 {[%emt 0:02:47]} 26. f5 {[%emt 0:02:01]} b5 {[%emt 0:05:19]} 27. Rc6 {[%emt 0:04:53]} gxf5 {[%emt 0:02:59]} 28. gxh5 {[%emt 0:04:09]} Qd4+ {[%emt 0:02:23]} 29. Kh1 {[%emt 0:01:20]} Qxd3 {[%emt 0:04:45]} 30. Qxd3 {[%emt 0:01:10]} Rxd3 {[%emt 0:00:07]} 31. Rg1 {[%emt 0:00:20]} Kh7 {[%emt 0:01:41]} 32. e6 {[%emt 0:02:16]} f6 {[%emt 0:02:45]} 33. Ne8 {[%emt 0:03:18]} Bh6 {[%emt 0:01:24]} 34. Rg6 {[%emt 0:02:28]} Rh3 {[%emt 0:03:03]} 35. Kg2 {[%emt 0:02:24]} Rxh5 {[%emt 0:00:18]} 36. Rxf6 {[%emt 0:02:09]} Rg5+ {[%emt 0:00:29]} 37. Kf3 {[%emt 0:00:13]} exf6 {[%emt 0:00:22]} 38. Nxf6+ {[%emt 0:00:06]} Kg6 {[%emt 0:06:54]} 39. Nd5 {[%emt 0:01:34]} Kh5 {[%emt 0:00:42]} 40. e7 {[%emt 0:00:19]} Rxe7 {[%emt 0:01:17]} 41. Nf4+ {[%emt 0:02:11]} 1-0

[Event "FIDE CB Open 2022"]
[Site "Ceske Budejovice"]
[Date "2022.07.04"]
[Round "4.36"]
[White "Rucabado, Stefan"]
[Black "Sadek, Vojtech"]
[Result "1/2-1/2"]
[ECO "D90"]
[WhiteElo "1809"]
[BlackElo "1973"]
[Annotator "RC"]
[PlyCount "68"]
[EventDate "2022.07.01"]
[EventType "swiss"]
[EventCountry "CZE"]
[SourceTitle "playchess.com"]
[Source "ChessBase"]
[SourceQuality "1"]
[TimeControl "40/5400+30:1800+30"]

1. d4 {[%emt 0:00:54]} Nf6 {[%emt 0:00:26]} 2. c4 {[%emt 0:00:22]} g6 {[%emt 0:00:05]} 3. Nf3 {[%emt 0:00:38]} Bg7 {[%emt 0:00:12]} 4. Nc3 {[%emt 0:00:41]} d5 {[%emt 0:00:07]} 5. h4 {[%emt 0:00:15]} O-O {[%emt 0:01:22]} 6. Bf4 {[%emt 0:02:08]} c6 {[%emt 0:05:28]} 7. e3 {[%emt 0:01:43]} Nbd7 {[%emt 0:17:23]} 8. c5 {[%emt 0:02:16]} b6 {[%emt 0:02:35]} 9. b4 {[%emt 0:00:37]} bxc5 {[%emt 0:00:47]} 10. bxc5 {[%emt 0:00:21]} Qa5 {[%emt 0:00:23]} 11. Qd2 {[%emt 0:03:34]} Nh5 {[%emt 0:04:00]} 12. Bh2 {[%emt 0:02:22]} Nxc5 {[%emt 0:03:32]} 13. Rc1 {[%emt 0:07:06]} Nd7 {[%emt 0:04:46]} 14. Be2 {[%emt 0:18:12]} Re8 {[%emt 0:09:39]} 15. O-O {[%emt 0:05:19]} Ba6 {[%emt 0:03:46]} 16. Rfd1 {[%emt 0:05:25]} Bxe2 {[%emt 0:03:42]} 17. Nxe2 {[%emt 0:00:09]} Qb6 {[%emt 0:04:53]} 18. Qd3 {[%emt 0:08:19]} e5 {[%emt 0:03:30]} 19. dxe5 {[%emt 0:00:43]} Nxe5 {[%emt 0:00:15]} 20. Nxe5 {[%emt 0:00:05]} Bxe5 {[%emt 0:00:12]} 21. Bxe5 {[%emt 0:00:13]} Rxe5 {[%emt 0:00:01]} 22. Qc3 {[%emt 0:00:13]} Re4 {[%emt 0:04:00]} 23. Qxc6 {[%emt 0:00:58]} Qxc6 {[%emt 0:00:06]} 24. Rxc6 {[%emt 0:00:05]} Rxh4 {[%emt 0:00:05]} 25. Rxd5 {[%emt 0:00:13]} Rb4 {[%emt 0:03:16]} 26. Rdc5 {[%emt 0:03:24]} Rb1+ {[%emt 0:01:27]} 27. Rc1 {[%emt 0:02:08]} Rab8 {[%emt 0:00:14]} 28. Nd4 {[%emt 0:01:04]} Nf6 {[%emt 0:05:32]} 29. Kf1 {[%emt 0:02:42]} Nd5 {[%emt 0:03:31]} 30. Rxb1 {[%emt 0:03:26]} Nc3 {[%emt 0:03:58]} 31. f3 {[%emt 0:10:08]} Kg7 {[%emt 0:05:59]} 32. g3 {[%emt 0:03:02]} h5 {[%emt 0:00:00]} 33. f4 {[%emt 0:00:00]} h4 {[%emt 0:00:00]} 34. gxh4 {[%emt 0:00:00]} Nd5 {[%emt 0:00:00]} 1/2-1/2